[Event "44th Chess Olympiad Women 2022"]
[Site "Chennai"]
[Date "2022.08.07"]
[Round "9.41"]
[White "Rondon Chacon, Yolys Desiree"]
[Black "Shuqja, Klean"]
[Result "0-1"]
[WhiteElo "1688"]
[BlackElo "1883"]
[Annotator "NA"]
[PlyCount "84"]
[EventDate "2022.??.??"]
[TimeControl "60"]

1. d4 {[%emt 0:00:01]} Nf6 {[%emt 0:00:02]} 2. Nf3 {[%emt 0:00:05]} e6 {
[%emt 0:00:10]} 3. g3 {[%emt 0:00:13]} d5 {[%emt 0:02:56]} 4. Bg2 {[%emt 0:00:
00]} Be7 {[%emt 0:00:19]} 5. O-O {[%emt 0:00:09]} O-O {[%emt 0:00:18]} 6. c4 {
[%emt 0:00:41]} b6 {[%emt 0:00:47]} 7. Nc3 {[%emt 0:01:43]} Bb7 {[%emt 0:00:18]
} 8. Ne5 {[%emt 0:02:35]} Nbd7 {[%emt 0:05:27]} 9. Bf4 {[%emt 0:03:11]} Rc8 {
[%emt 0:13:22]} 10. Qa4 {[%emt 0:14:13]} Nxe5 {[%emt 0:26:05]} 11. dxe5 {
[%emt 0:01:11]} Ne4 {[%emt 0:02:31]} 12. Nxe4 {[%emt 0:03:37]} dxe4 {[%emt 0:
00:00]} 13. Rfd1 {[%emt 0:03:13]} Qe8 {[%emt 0:00:28]} 14. Qxe8 {[%emt 0:28:33]
} Rfxe8 {[%emt 0:00:20]} 15. a3 {[%emt 0:01:10]} a5 {[%emt 0:02:16]} 16. Rd2 {
[%emt 0:04:48]} a4 {[%emt 0:07:06]} 17. Be3 {[%emt 0:04:29]} Bc6 {[%emt 0:00:
00]} 18. Rad1 {[%emt 0:01:57]} Red8 {[%emt 0:06:18]} 19. Kf1 {[%emt 0:06:05]}
f6 {[%emt 0:02:32]} 20. exf6 {[%emt 0:04:00]} gxf6 {[%emt 0:00:27]} 21. Rxd8+ {
[%emt 0:04:31]} Rxd8 {[%emt 0:00:01]} 22. Rxd8+ {[%emt 0:00:21]} Bxd8 {[%emt 0:
00:00]} 23. h4 {[%emt 0:01:07]} f5 {[%emt 0:02:59]} 24. Bd4 {[%emt 0:01:10]}
Bb7 {[%emt 0:01:02]} 25. c5 {[%emt 0:04:05]} bxc5 {[%emt 0:00:25]} 26. Bxc5 {
[%emt 0:00:05]} Bf6 {[%emt 0:00:06]} 27. f3 {[%emt 0:05:33]} exf3 {[%emt 0:00:
00]} 28. Bxf3 {[%emt 0:00:52]} Bxf3 {[%emt 0:00:02]} 29. exf3 {[%emt 0:00:08]}
Bxb2 {[%emt 0:00:03]} 30. Ke2 {[%emt 0:01:05]} e5 {[%emt 0:01:24]} 31. Kd3 {
[%emt 0:00:51]} Kf7 {[%emt 0:01:10]} 32. g4 {[%emt 0:01:21]} Ke6 {[%emt 0:00:
00]} 33. g5 {[%emt 0:01:32]} Bc1 {[%emt 0:00:57]} 34. Kc2 {[%emt 0:01:06]} Bf4
{[%emt 0:00:53]} 35. Kd3 {[%emt 0:00:47]} Kd5 {[%emt 0:02:18]} 36. Be7 {
[%emt 0:00:40]} e4+ {[%emt 0:00:09]} 37. fxe4+ {[%emt 0:00:55]} fxe4+ {[%emt 0:
00:00]} 38. Ke2 {[%emt 0:00:18]} Ke5 {[%emt 0:00:27]} 39. Bf6+ {[%emt 0:00:45]}
Kf5 {[%emt 0:00:10]} 40. Bd4 {[%emt 0:00:29]} Bd6 {[%emt 0:00:49]} 41. Bb2 {
[%emt 0:04:12]} Bc5 {[%emt 0:02:13]} 42. Bc1 {[%emt 0:00:19]} Kg4 {[%emt 0:00:
00]} 0-1

[Event "44th Chess Olympiad Women 2022"]
[Site "Chennai"]
[Date "2022.08.07"]
[Round "9.41"]
[White "Shabanaj, Eglantina"]
[Black "Chung Hurtado, Yaleika"]
[Result "1-0"]
[WhiteElo "1940"]
[BlackElo "1696"]
[Annotator "NA RC"]
[PlyCount "57"]
[EventDate "2022.??.??"]
[TimeControl "60"]

1. Nf3 {[%emt 0:00:01]} Nf6 {[%emt 0:00:13]} 2. d4 {[%emt 0:00:10]} e6 {
[%emt 0:00:12]} 3. c4 {[%emt 0:00:23]} d5 {[%emt 0:00:49]} 4. Qc2 {[%emt 0:00:
00]} c6 {[%emt 0:00:38]} 5. Bf4 {[%emt 0:01:49]} Bb4+ {[%emt 0:02:34]} 6. Nbd2
{[%emt 0:04:03]} Ne4 {[%emt 0:02:01]} 7. a3 {[%emt 0:02:47]} Bd6 {[%emt 0:00:
00]} 8. Bxd6 {[%emt 0:01:09]} Nxd6 {[%emt 0:00:03]} 9. e4 {[%emt 0:02:27]} Nxe4
{[%emt 0:00:45]} 10. Nxe4 {[%emt 0:00:11]} dxe4 {[%emt 0:00:07]} 11. Qxe4 {
[%emt 0:00:07]} Qf6 {[%emt 0:03:28]} 12. Bd3 {[%emt 0:04:45]} g6 {[%emt 0:00:
00]} 13. O-O {[%emt 0:03:42]} O-O {[%emt 0:02:45]} 14. Rfe1 {[%emt 0:03:26]}
Nd7 {[%emt 0:00:44]} 15. h4 {[%emt 0:02:08]} c5 {[%emt 0:07:58]} 16. b4 {
[%emt 0:07:18]} cxd4 {[%emt 0:05:30]} 17. Nxd4 {[%emt 0:03:18]} Rb8 {[%emt 0:
00:00]} 18. c5 {[%emt 0:02:30]} a6 {[%emt 0:05:40]} 19. Rad1 {[%emt 0:03:10]}
Rd8 {[%emt 0:01:02]} 20. Bb1 {[%emt 0:01:53]} Nf8 {[%emt 0:04:48]} 21. Nf3 {
[%emt 0:04:10]} Bd7 {[%emt 0:00:32]} 22. Ne5 {[%emt 0:02:55]} Ba4 {[%emt 0:00:
00]} 23. Rxd8 {[%emt 0:01:06]} Qxd8 {[%emt 0:00:23]} 24. Qf4 {[%emt 0:00:25]}
Be8 {[%emt 0:07:57]} 25. Ng4 {[%emt 0:02:25]} Rc8 {[%emt 0:11:58]} 26. h5 {
[%emt 0:03:51]} gxh5 {[%emt 0:04:55]} 27. Nf6+ {[%emt 0:00:39]} Kg7 {[%emt 0:
00:00]} 28. Nxh5+ {[%emt 0:00:21]} Kg8 {[%emt 0:00:07]} 29. Qh6 {[%emt 0:00:41]
} 1-0

[Event "44th Chess Olympiad Women 2022"]
[Site "Chennai"]
[Date "2022.08.07"]
[Round "9.42"]
[White "Nakabo, Peninah"]
[Black "Stojkovska, Monika"]
[Result "1-0"]
[WhiteElo "1747"]
[BlackElo "2091"]
[Annotator "RC"]
[PlyCount "126"]
[EventDate "2022.??.??"]
[TimeControl "60"]

1. e4 {[%emt 0:00:06]} c5 {[%emt 0:00:07]} 2. c3 {[%emt 0:00:08]} e6 {[%emt 0:
00:00]} 3. d4 {[%emt 0:00:10]} d5 {[%emt 0:00:04]} 4. exd5 {[%emt 0:00:08]}
exd5 {[%emt 0:00:24]} 5. Nf3 {[%emt 0:00:09]} Nc6 {[%emt 0:01:14]} 6. Bb5 {
[%emt 0:00:15]} a6 {[%emt 0:01:48]} 7. Bxc6+ {[%emt 0:00:31]} bxc6 {[%emt 0:00:
00]} 8. O-O {[%emt 0:00:28]} Bd6 {[%emt 0:00:42]} 9. dxc5 {[%emt 0:00:40]} Bxc5
{[%emt 0:00:15]} 10. Nbd2 {[%emt 0:12:52]} Ne7 {[%emt 0:03:30]} 11. Nb3 {
[%emt 0:00:20]} Bd6 {[%emt 0:01:21]} 12. Be3 {[%emt 0:00:32]} O-O {[%emt 0:00:
00]} 13. Bc5 {[%emt 0:00:47]} Bg4 {[%emt 0:11:00]} 14. h3 {[%emt 0:04:49]} Bh5
{[%emt 0:01:50]} 15. Qd3 {[%emt 0:13:46]} Ng6 {[%emt 0:07:39]} 16. Qf5 {
[%emt 0:06:10]} Bxf3 {[%emt 0:06:08]} 17. Qxf3 {[%emt 0:00:15]} Ne5 {[%emt 0:
00:00]} 18. Qd1 {[%emt 0:05:01]} Nc4 {[%emt 0:10:32]} 19. Qc2 {[%emt 0:07:02]}
Rb8 {[%emt 0:02:50]} 20. Rab1 {[%emt 0:00:38]} Re8 {[%emt 0:01:03]} 21. Bxd6 {
[%emt 0:01:51]} Qxd6 {[%emt 0:00:06]} 22. Rfe1 {[%emt 0:00:52]} Ne5 {[%emt 0:
00:00]} 23. Re3 {[%emt 0:05:56]} c5 {[%emt 0:04:59]} 24. Rbe1 {[%emt 0:07:50]}
d4 {[%emt 0:05:04]} 25. cxd4 {[%emt 0:00:32]} cxd4 {[%emt 0:00:07]} 26. Rd1 {
[%emt 0:02:32]} Nc6 {[%emt 0:08:03]} 27. Rxe8+ {[%emt 0:01:04]} Rxe8 {[%emt 0:
00:00]} 28. Qc4 {[%emt 0:01:59]} a5 {[%emt 0:02:55]} 29. Qc5 {[%emt 0:10:18]}
Qxc5 {[%emt 0:05:02]} 30. Nxc5 {[%emt 0:00:09]} f6 {[%emt 0:00:48]} 31. Kf1 {
[%emt 0:01:20]} Kf7 {[%emt 0:00:46]} 32. a3 {[%emt 0:01:13]} Rb8 {[%emt 0:00:
00]} 33. Rd2 {[%emt 0:00:48]} Ke7 {[%emt 0:01:09]} 34. Ke2 {[%emt 0:02:09]} Kd6
{[%emt 0:00:34]} 35. Nd3 {[%emt 0:05:07]} Rb3 {[%emt 0:02:00]} 36. f4 {[%emt 0:
00:00]} g5 {[%emt 0:06:51]} 37. g3 {[%emt 0:00:24]} gxf4 {[%emt 0:00:34]} 38.
gxf4 {[%emt 0:00:11]} Rb7 {[%emt 0:01:02]} 39. Kf3 {[%emt 0:00:39]} Re7 {
[%emt 0:00:21]} 40. Kg4 {[%emt 0:04:23]} Re3 {[%emt 0:00:24]} 41. h4 {[%emt 0:
00:00]} Ne7 {[%emt 0:02:25]} 42. b4 {[%emt 0:00:00]} axb4 {[%emt 0:02:36]} 43.
Nxb4 {[%emt 0:00:00]} Kc5 {[%emt 0:02:07]} 44. Nc2 {[%emt 0:00:00]} Re4 {
[%emt 0:03:34]} 45. a4 {[%emt 0:00:00]} Kc4 {[%emt 0:06:32]} 46. a5 {[%emt 0:
00:00]} d3 {[%emt 0:02:03]} 47. Na3+ {[%emt 0:00:00]} Kd4 {[%emt 0:06:09]} 48.
Kf3 {[%emt 0:00:00]} Re6 {[%emt 0:05:43]} 49. Nb5+ {[%emt 0:01:06]} Kc4 {
[%emt 0:00:26]} 50. Na3+ {[%emt 0:00:45]} Kc3 {[%emt 0:00:28]} 51. Nb1+ {
[%emt 0:00:11]} Kd4 {[%emt 0:00:38]} 52. Ra2 {[%emt 0:00:42]} Nc6 {[%emt 0:00:
00]} 53. Ra4+ {[%emt 0:00:29]} Kc5 {[%emt 0:00:20]} 54. a6 {[%emt 0:00:40]} Na7
{[%emt 0:00:25]} 55. f5 {[%emt 0:00:58]} Re1 {[%emt 0:01:14]} 56. Nd2 {[%emt 0:
00:00]} Re2 {[%emt 0:01:28]} 57. Nb3+ {[%emt 0:01:10]} Kb6 {[%emt 0:00:56]} 58.
Rd4 {[%emt 0:00:43]} Kxa6 {[%emt 0:00:15]} 59. Rxd3 {[%emt 0:00:08]} Rc2 {
[%emt 0:00:44]} 60. Rd6+ {[%emt 0:00:49]} Rc6 {[%emt 0:00:25]} 61. Nc5+ {
[%emt 0:00:33]} Kb5 {[%emt 0:00:16]} 62. Rxc6 {[%emt 0:00:14]} Kxc6 {[%emt 0:
00:00]} 63. Ne4 {[%emt 0:00:10]} Kd5 {[%emt 0:01:10]} 1-0

[Event "44th Chess Olympiad Women 2022"]
[Site "Chennai"]
[Date "2022.08.07"]
[Round "9.42"]
[White "Nansubuga, Gloria"]
[Black "Eftovska, Lea"]
[Result "0-1"]
[WhiteElo "1538"]
[BlackElo "1634"]
[Annotator "NA RC"]
[PlyCount "110"]
[EventDate "2022.??.??"]
[TimeControl "60"]

1. e4 {[%emt 0:00:03]} e5 {[%emt 0:00:14]} 2. Bc4 {[%emt 0:00:16]} Nf6 {
[%emt 0:00:28]} 3. d3 {[%emt 0:01:02]} Bc5 {[%emt 0:00:51]} 4. Nf3 {[%emt 0:00:
00]} d6 {[%emt 0:01:14]} 5. c3 {[%emt 0:00:38]} Nc6 {[%emt 0:03:56]} 6. Bg5 {
[%emt 0:04:00]} h6 {[%emt 0:00:22]} 7. Bh4 {[%emt 0:03:07]} O-O {[%emt 0:01:03]
} 8. Nbd2 {[%emt 0:00:47]} a6 {[%emt 0:00:47]} 9. O-O {[%emt 0:00:14]} Ba7 {
[%emt 0:05:34]} 10. h3 {[%emt 0:00:55]} Na5 {[%emt 0:00:34]} 11. Bb3 {[%emt 0:
00:00]} Nxb3 {[%emt 0:00:53]} 12. Nxb3 {[%emt 0:00:08]} Qe7 {[%emt 0:15:00]}
13. Kh1 {[%emt 0:01:36]} Bd7 {[%emt 0:04:47]} 14. Nh2 {[%emt 0:00:28]} g5 {
[%emt 0:01:24]} 15. Bg3 {[%emt 0:00:22]} Kh7 {[%emt 0:03:38]} 16. Nd2 {[%emt 0:
00:00]} Rg8 {[%emt 0:04:48]} 17. f3 {[%emt 0:02:49]} Nh5 {[%emt 0:02:49]} 18.
Bf2 {[%emt 0:00:07]} Bxf2 {[%emt 0:06:56]} 19. Rxf2 {[%emt 0:00:02]} Nf4 {
[%emt 0:01:11]} 20. Ndf1 {[%emt 0:02:23]} h5 {[%emt 0:03:12]} 21. Ne3 {[%emt 0:
00:00]} c6 {[%emt 0:01:02]} 22. d4 {[%emt 0:01:18]} Raf8 {[%emt 0:05:29]} 23.
dxe5 {[%emt 0:01:11]} dxe5 {[%emt 0:02:10]} 24. Rd2 {[%emt 0:03:30]} Be6 {
[%emt 0:01:21]} 25. Nf5 {[%emt 0:01:08]} Bxf5 {[%emt 0:00:18]} 26. exf5 {
[%emt 0:00:05]} Rd8 {[%emt 0:00:57]} 27. Rxd8 {[%emt 0:00:24]} Rxd8 {[%emt 0:
00:00]} 28. Qc2 {[%emt 0:00:52]} Qf6 {[%emt 0:01:58]} 29. Nf1 {[%emt 0:01:29]}
Kg7 {[%emt 0:07:24]} 30. Ng3 {[%emt 0:02:01]} h4 {[%emt 0:03:10]} 31. Nf1 {
[%emt 0:03:26]} Qd6 {[%emt 0:01:28]} 32. Re1 {[%emt 0:04:32]} f6 {[%emt 0:00:
00]} 33. Qb3 {[%emt 0:10:21]} b5 {[%emt 0:01:02]} 34. Qc2 {[%emt 0:05:27]} Qd3
{[%emt 0:02:14]} 35. Qxd3 {[%emt 0:01:00]} Rxd3 {[%emt 0:00:59]} 36. Kh2 {
[%emt 0:01:41]} Kf7 {[%emt 0:05:27]} 37. Kg1 {[%emt 0:02:51]} a5 {[%emt 0:00:
00]} 38. Kf2 {[%emt 0:02:20]} Rd7 {[%emt 0:01:15]} 39. Kg1 {[%emt 0:01:09]} a4
{[%emt 0:01:21]} 40. Kh2 {[%emt 0:05:54]} Ke7 {[%emt 0:02:20]} 41. g3 {[%emt 0:
00:00]} hxg3+ {[%emt 0:31:21]} 42. Kxg3 {[%emt 0:04:00]} Rd8 {[%emt 0:03:29]}
43. Re3 {[%emt 0:19:51]} Rh8 {[%emt 0:00:49]} 44. b3 {[%emt 0:00:56]} Rxh3+ {
[%emt 0:01:05]} 45. Kf2 {[%emt 0:00:10]} axb3 {[%emt 0:00:27]} 46. axb3 {
[%emt 0:00:07]} Rh8 {[%emt 0:01:12]} 47. c4 {[%emt 0:01:39]} Ra8 {[%emt 0:00:
00]} 48. cxb5 {[%emt 0:00:00]} Ra2+ {[%emt 0:00:00]} 49. Kg1 {[%emt 0:00:00]}
cxb5 {[%emt 0:00:00]} 50. Kh1 {[%emt 0:00:00]} Ne2 {[%emt 0:00:00]} 51. Rd3 {
[%emt 0:00:00]} Ra1 {[%emt 0:00:00]} 52. Rd2 {[%emt 0:00:00]} Ng3+ {[%emt 0:00:
00]} 53. Kg2 {[%emt 0:00:00]} Nxf1 {[%emt 0:00:00]} 54. Re2 {[%emt 0:00:00]}
Kd6 {[%emt 0:00:00]} 55. Kf2 {[%emt 0:00:00]} Kc5 {[%emt 0:00:00]} 0-1

[Event "44th Chess Olympiad Women 2022"]
[Site "Chennai"]
[Date "2022.08.07"]
[Round "9.42"]
[White "Nikolovska, Dragana"]
[Black "Ampaire Shakira"]
[Result "1-0"]
[WhiteElo "1876"]
[BlackElo "1666"]
[Annotator "NA RC"]
[PlyCount "119"]
[EventDate "2022.??.??"]
[TimeControl "60"]

1. e4 {[%emt 0:00:05]} d5 {[%emt 0:01:21]} 2. exd5 {[%emt 0:01:06]} Qxd5 {
[%emt 0:00:06]} 3. d4 {[%emt 0:03:04]} e5 {[%emt 0:00:56]} 4. Nf3 {[%emt 0:00:
00]} Bg4 {[%emt 0:05:51]} 5. dxe5 {[%emt 0:04:49]} Bxf3 {[%emt 0:00:34]} 6.
Qxf3 {[%emt 0:00:07]} Qxe5+ {[%emt 0:01:03]} 7. Be2 {[%emt 0:00:18]} Nc6 {
[%emt 0:00:14]} 8. c3 {[%emt 0:06:28]} Bd6 {[%emt 0:03:37]} 9. Nd2 {[%emt 0:00:
00]} Nf6 {[%emt 0:00:33]} 10. Nc4 {[%emt 0:01:09]} Qe4 {[%emt 0:04:59]} 11.
Nxd6+ {[%emt 0:03:55]} cxd6 {[%emt 0:00:21]} 12. O-O {[%emt 0:08:55]} O-O {
[%emt 0:02:41]} 13. Bg5 {[%emt 0:16:10]} Ne5 {[%emt 0:03:36]} 14. Qxe4 {
[%emt 0:01:13]} Nxe4 {[%emt 0:00:44]} 15. Bf4 {[%emt 0:01:43]} g5 {[%emt 0:00:
00]} 16. Be3 {[%emt 0:02:02]} h6 {[%emt 0:01:48]} 17. Rad1 {[%emt 0:00:32]}
Rfd8 {[%emt 0:01:10]} 18. f3 {[%emt 0:01:56]} Nc5 {[%emt 0:07:13]} 19. f4 {
[%emt 0:01:33]} gxf4 {[%emt 0:02:50]} 20. Rxf4 {[%emt 0:00:55]} Ng6 {[%emt 0:
00:00]} 21. Rf3 {[%emt 0:09:50]} Kg7 {[%emt 0:04:54]} 22. Rh3 {[%emt 0:00:44]}
Ne6 {[%emt 0:05:02]} 23. Bxh6+ {[%emt 0:00:59]} Kg8 {[%emt 0:01:04]} 24. Bc4 {
[%emt 0:03:52]} Rac8 {[%emt 0:02:59]} 25. Bd5 {[%emt 0:01:28]} Nef4 {[%emt 0:
00:00]} 26. Rf3 {[%emt 0:03:58]} Nxd5 {[%emt 0:07:56]} 27. Rxd5 {[%emt 0:00:02]
} Rc5 {[%emt 0:00:18]} 28. Rfd3 {[%emt 0:01:28]} Rxd5 {[%emt 0:03:12]} 29. Rxd5
{[%emt 0:00:02]} f6 {[%emt 0:00:46]} 30. Rf5 {[%emt 0:03:11]} Kh7 {[%emt 0:00:
00]} 31. Be3 {[%emt 0:00:45]} Kg7 {[%emt 0:01:31]} 32. Bxa7 {[%emt 0:00:49]}
Ne5 {[%emt 0:10:01]} 33. Bd4 {[%emt 0:02:53]} Kg6 {[%emt 0:00:11]} 34. Rf2 {
[%emt 0:00:47]} f5 {[%emt 0:00:25]} 35. g3 {[%emt 0:00:42]} Re8 {[%emt 0:01:27]
} 36. Kg2 {[%emt 0:03:01]} Nc6 {[%emt 0:03:15]} 37. Bb6 {[%emt 0:00:44]} Re4 {
[%emt 0:03:27]} 38. Rd2 {[%emt 0:02:02]} Kg5 {[%emt 0:01:30]} 39. b4 {[%emt 0:
00:00]} Rc4 {[%emt 0:05:46]} 40. h4+ {[%emt 0:01:29]} Kg4 {[%emt 0:00:36]} 41.
b5 {[%emt 0:04:29]} Ne5 {[%emt 0:04:14]} 42. Rd4+ {[%emt 0:00:24]} f4 {[%emt 0:
00:00]} 43. gxf4 {[%emt 0:05:50]} Rxd4 {[%emt 0:01:29]} 44. Bxd4 {[%emt 0:00:
00]} Nc4 {[%emt 0:00:26]} 45. Bf6 {[%emt 0:01:53]} Kxf4 {[%emt 0:01:00]} 46. h5
{[%emt 0:01:18]} Kf5 {[%emt 0:01:11]} 47. Bg7 {[%emt 0:00:36]} Na3 {[%emt 0:00:
00]} 48. b6 {[%emt 0:06:31]} Kg5 {[%emt 0:05:16]} 49. h6 {[%emt 0:01:58]} Kg6 {
[%emt 0:00:26]} 50. Kf3 {[%emt 0:01:17]} Nc4 {[%emt 0:00:14]} 51. Bd4 {[%emt 0:
00:00]} Nd2+ {[%emt 0:06:29]} 52. Kg4 {[%emt 0:03:43]} Nc4 {[%emt 0:02:46]} 53.
a4 {[%emt 0:01:37]} Kxh6 {[%emt 0:01:15]} 54. Kf5 {[%emt 0:00:14]} Kh7 {
[%emt 0:00:33]} 55. Ke6 {[%emt 0:00:11]} Kg8 {[%emt 0:00:11]} 56. Kd5 {[%emt 0:
00:00]} Na5 {[%emt 0:00:25]} 57. Kxd6 {[%emt 0:00:16]} Kf7 {[%emt 0:00:05]} 58.
Kc7 {[%emt 0:01:19]} Ke6 {[%emt 0:00:14]} 59. Bc5 {[%emt 0:00:36]} Kd5 {
[%emt 0:01:02]} 60. Bb4 {[%emt 0:00:13]} 1-0

[Event "44th Chess Olympiad Women 2022"]
[Site "Chennai"]
[Date "2022.08.07"]
[Round "9.42"]
[White "Zhezhovska, Monika"]
[Black "Takali Milly"]
[Result "1-0"]
[WhiteElo "1588"]
[BlackElo "1482"]
[Annotator "NA"]
[PlyCount "123"]
[EventDate "2022.??.??"]
[TimeControl "60"]

1. d4 {[%emt 0:00:04]} Nf6 {[%emt 0:00:22]} 2. c4 {[%emt 0:00:13]} g6 {[%emt 0:
00:00]} 3. Nc3 {[%emt 0:00:12]} Bg7 {[%emt 0:00:02]} 4. e4 {[%emt 0:00:24]} d6
{[%emt 0:00:03]} 5. Be2 {[%emt 0:00:28]} O-O {[%emt 0:00:17]} 6. Be3 {[%emt 0:
00:00]} Nc6 {[%emt 0:00:52]} 7. h4 {[%emt 0:01:37]} h5 {[%emt 0:00:28]} 8. Nh3
{[%emt 0:00:43]} e5 {[%emt 0:01:09]} 9. d5 {[%emt 0:00:29]} Ne7 {[%emt 0:00:17]
} 10. Ng5 {[%emt 0:02:39]} c6 {[%emt 0:01:23]} 11. f3 {[%emt 0:03:15]} Bd7 {
[%emt 0:01:12]} 12. g4 {[%emt 0:03:10]} cxd5 {[%emt 0:01:29]} 13. cxd5 {
[%emt 0:00:23]} a6 {[%emt 0:00:46]} 14. a4 {[%emt 0:03:54]} Rc8 {[%emt 0:00:35]
} 15. Rg1 {[%emt 0:04:39]} Qa5 {[%emt 0:02:07]} 16. Ra3 {[%emt 0:10:27]} Rc7 {
[%emt 0:02:12]} 17. Qb3 {[%emt 0:03:35]} Nc8 {[%emt 0:04:47]} 18. Kf1 {[%emt 0:
00:00]} Kh8 {[%emt 0:05:40]} 19. Kf2 {[%emt 0:15:00]} Kg8 {[%emt 0:10:02]} 20.
Nb5 {[%emt 0:03:41]} Rc5 {[%emt 0:07:55]} 21. Bxc5 {[%emt 0:01:15]} dxc5 {
[%emt 0:00:08]} 22. Nc3 {[%emt 0:00:17]} Nd6 {[%emt 0:01:32]} 23. Qc2 {[%emt 0:
00:00]} Qb4 {[%emt 0:02:10]} 24. Qd2 {[%emt 0:03:34]} Qd4+ {[%emt 0:05:43]} 25.
Qxd4 {[%emt 0:00:19]} cxd4 {[%emt 0:00:03]} 26. Nd1 {[%emt 0:02:12]} Rc8 {
[%emt 0:00:17]} 27. gxh5 {[%emt 0:01:19]} Nxh5 {[%emt 0:00:14]} 28. Bd3 {
[%emt 0:03:13]} Nf4 {[%emt 0:00:23]} 29. Ke1 {[%emt 0:00:38]} Bxa4 {[%emt 0:00:
00]} 30. Rxa4 {[%emt 0:03:52]} Nxd3+ {[%emt 0:01:17]} 31. Kd2 {[%emt 0:00:04]}
Nf4 {[%emt 0:01:30]} 32. b3 {[%emt 0:03:58]} Bh6 {[%emt 0:05:07]} 33. Rg4 {
[%emt 0:03:50]} f6 {[%emt 0:03:14]} 34. Rxf4 {[%emt 0:01:10]} fxg5 {[%emt 0:00:
00]} 35. Rf6 {[%emt 0:00:39]} gxh4+ {[%emt 0:02:05]} 36. Ke1 {[%emt 0:00:05]}
Nf7 {[%emt 0:04:04]} 37. Rxg6+ {[%emt 0:00:54]} Kh7 {[%emt 0:00:09]} 38. Rb6 {
[%emt 0:00:55]} Rc7 {[%emt 0:02:46]} 39. Ra2 {[%emt 0:01:11]} Bf4 {[%emt 0:00:
00]} 40. d6 {[%emt 0:03:02]} Rd7 {[%emt 0:00:18]} 41. Nf2 {[%emt 0:30:37]} Nxd6
{[%emt 0:30:41]} 42. Ng4 {[%emt 0:00:41]} Kg6 {[%emt 0:01:44]} 43. Rg2 {
[%emt 0:00:44]} Bg3+ {[%emt 0:00:16]} 44. Rxg3 {[%emt 0:00:20]} hxg3 {[%emt 0:
00:00]} 45. Nxe5+ {[%emt 0:01:58]} Kg5 {[%emt 0:00:14]} 46. Nxd7 {[%emt 0:00:
00]} Nb5 {[%emt 0:00:20]} 47. Nc5 {[%emt 0:00:30]} Kf4 {[%emt 0:00:33]} 48.
Rf6+ {[%emt 0:01:28]} Ke3 {[%emt 0:00:06]} 49. e5 {[%emt 0:00:38]} d3 {[%emt 0:
00:00]} 50. Nxd3 {[%emt 0:00:39]} Kxd3 {[%emt 0:00:02]} 51. e6 {[%emt 0:00:06]}
Nd6 {[%emt 0:00:32]} 52. e7 {[%emt 0:00:06]} Ne8 {[%emt 0:00:10]} 53. Rf8 {
[%emt 0:00:23]} Nc7 {[%emt 0:03:43]} 54. e8=Q {[%emt 0:00:12]} Nxe8 {[%emt 0:
00:00]} 55. Rxe8 {[%emt 0:00:06]} Kc3 {[%emt 0:00:05]} 56. Re3+ {[%emt 0:00:54]
} Kd4 {[%emt 0:00:28]} 57. Kd2 {[%emt 0:00:15]} b5 {[%emt 0:00:39]} 58. Re4+ {
[%emt 0:00:23]} Kd5 {[%emt 0:01:11]} 59. Rg4 {[%emt 0:00:03]} a5 {[%emt 0:00:
00]} 60. Rxg3 {[%emt 0:00:14]} a4 {[%emt 0:00:04]} 61. bxa4 {[%emt 0:00:19]}
bxa4 {[%emt 0:00:03]} 62. Kc3 {[%emt 0:00:28]} 1-0

[Event "44th Chess Olympiad Women 2022"]
[Site "Chennai"]
[Date "2022.08.07"]
[Round "9.43"]
[White "Clarke, Adani"]
[Black "Roy, Ali"]
[Result "1/2-1/2"]
[WhiteElo "1812"]
[BlackElo "1893"]
[Annotator "NA"]
[PlyCount "140"]
[EventDate "2022.??.??"]
[TimeControl "60"]

1. d4 {[%emt 0:00:02]} d5 {[%emt 0:00:05]} 2. c4 {[%emt 0:00:06]} c6 {[%emt 0:
00:00]} 3. Nf3 {[%emt 0:00:06]} Nf6 {[%emt 0:00:06]} 4. Nc3 {[%emt 0:00:15]}
Nbd7 {[%emt 0:00:10]} 5. Bf4 {[%emt 0:00:18]} e6 {[%emt 0:00:13]} 6. e3 {
[%emt 0:00:07]} Be7 {[%emt 0:00:10]} 7. Qc2 {[%emt 0:00:15]} O-O {[%emt 0:00:
00]} 8. Bd3 {[%emt 0:00:07]} b6 {[%emt 0:03:08]} 9. O-O {[%emt 0:00:45]} Bb7 {
[%emt 0:00:34]} 10. cxd5 {[%emt 0:01:05]} cxd5 {[%emt 0:01:48]} 11. Rac1 {
[%emt 0:05:17]} Rc8 {[%emt 0:03:57]} 12. Qb3 {[%emt 0:00:58]} Nh5 {[%emt 0:00:
00]} 13. Bg3 {[%emt 0:03:13]} Nxg3 {[%emt 0:00:19]} 14. hxg3 {[%emt 0:01:27]}
Nf6 {[%emt 0:04:15]} 15. Rc2 {[%emt 0:01:17]} Ne4 {[%emt 0:06:01]} 16. Rfc1 {
[%emt 0:02:44]} Nxc3 {[%emt 0:07:21]} 17. Rxc3 {[%emt 0:00:12]} Rxc3 {[%emt 0:
00:00]} 18. Rxc3 {[%emt 0:00:14]} Qb8 {[%emt 0:02:37]} 19. Qc2 {[%emt 0:02:50]}
Rc8 {[%emt 0:05:02]} 20. Bxh7+ {[%emt 0:01:04]} Kf8 {[%emt 0:00:10]} 21. Ne5 {
[%emt 0:02:37]} Rxc3 {[%emt 0:03:27]} 22. Qxc3 {[%emt 0:00:08]} Qc8 {[%emt 0:
00:00]} 23. Qxc8+ {[%emt 0:02:39]} Bxc8 {[%emt 0:00:04]} 24. Bd3 {[%emt 0:00:
00]} Bd6 {[%emt 0:04:38]} 25. Kf1 {[%emt 0:03:15]} g5 {[%emt 0:04:52]} 26. Ke1
{[%emt 0:03:22]} f6 {[%emt 0:02:15]} 27. Nf3 {[%emt 0:02:12]} Kg7 {[%emt 0:00:
00]} 28. a3 {[%emt 0:00:53]} a5 {[%emt 0:00:54]} 29. Bb5 {[%emt 0:01:20]} g4 {
[%emt 0:02:06]} 30. Nh2 {[%emt 0:02:18]} e5 {[%emt 0:01:17]} 31. Bc6 {[%emt 0:
00:00]} Be6 {[%emt 0:03:09]} 32. Nf1 {[%emt 0:00:56]} Kg6 {[%emt 0:03:40]} 33.
Nd2 {[%emt 0:03:45]} f5 {[%emt 0:13:40]} 34. Nb1 {[%emt 0:03:33]} f4 {[%emt 0:
00:00]} 35. gxf4 {[%emt 0:02:23]} exd4 {[%emt 0:00:59]} 36. exd4 {[%emt 0:00:
00]} Bxf4 {[%emt 0:00:16]} 37. Nc3 {[%emt 0:00:08]} g3 {[%emt 0:03:04]} 38.
Bxd5 {[%emt 0:04:51]} gxf2+ {[%emt 0:02:11]} 39. Kxf2 {[%emt 0:00:08]} Bxd5 {
[%emt 0:01:21]} 40. Nxd5 {[%emt 0:00:09]} Bc1 {[%emt 0:00:16]} 41. Nxb6 {
[%emt 0:32:46]} Bxb2 {[%emt 0:30:24]} 42. Ke3 {[%emt 0:00:10]} Bxa3 {[%emt 0:
00:00]} 43. Ke4 {[%emt 0:00:06]} Kg5 {[%emt 0:05:10]} 44. Kd5 {[%emt 0:08:24]}
Kf4 {[%emt 0:00:00]} 45. Kc6 {[%emt 0:00:00]} Kg3 {[%emt 0:00:00]} 46. Kb5 {
[%emt 0:00:00]} Kxg2 {[%emt 0:00:00]} 47. Kxa5 {[%emt 0:00:00]} Kf3 {[%emt 0:
00:00]} 48. Kb5 {[%emt 0:00:00]} Ke4 {[%emt 0:00:00]} 49. d5 {[%emt 0:00:00]}
Ke5 {[%emt 0:00:00]} 50. Kc6 {[%emt 0:00:00]} Be7 {[%emt 0:00:00]} 51. Nc4+ {
[%emt 0:00:00]} Kd4 {[%emt 0:00:00]} 52. Nd2 {[%emt 0:00:00]} Ke5 {[%emt 0:00:
00]} 53. Nf3+ {[%emt 0:00:00]} Ke4 {[%emt 0:00:00]} 54. Nh2 {[%emt 0:00:00]}
Kf4 {[%emt 0:00:00]} 55. Nf1 {[%emt 0:00:00]} Bb4 {[%emt 0:00:00]} 56. Kb5 {
[%emt 0:00:00]} Ke5 {[%emt 0:00:00]} 57. Kc4 {[%emt 0:00:00]} Bf8 {[%emt 0:00:
00]} 58. Ne3 {[%emt 0:00:00]} Kd6 {[%emt 0:00:00]} 59. Kd4 {[%emt 0:00:00]}
Bg7+ {[%emt 0:00:00]} 60. Ke4 {[%emt 0:00:00]} Bf8 {[%emt 0:00:00]} 61. Nf5+ {
[%emt 0:00:00]} Kc5 {[%emt 0:00:00]} 62. Ke5 {[%emt 0:00:00]} Kc4 {[%emt 0:00:
00]} 63. Ke6 {[%emt 0:00:00]} Bc5 {[%emt 0:00:00]} 64. Nd6+ {[%emt 0:00:00]}
Kd4 {[%emt 0:00:00]} 65. Nb5+ {[%emt 0:00:00]} Kc4 {[%emt 0:00:00]} 66. Nc7 {
[%emt 0:00:00]} Kd4 {[%emt 0:00:00]} 67. Kd7 {[%emt 0:00:11]} Bb4 {[%emt 0:00:
00]} 68. Kc6 {[%emt 0:03:05]} Ke5 {[%emt 0:00:00]} 69. Ne6 {[%emt 0:00:59]} Be7
{[%emt 0:00:00]} 70. Nc5 {[%emt 0:01:57]} Kd4 {[%emt 0:00:00]} 1/2-1/2